{"text_format":"3","workbook":"xlsx","n_sheets":3,"sheets":["PD 17-18.099 Bid Form","Base Bid Unit Pricing","Alternate Bid 1 Unit Pricing"],"read":"whole","date_system":"1900"}

{"sheet":"PD 17-18.099 Bid Form","index":0,"n_rows":36,"n_cols":11,"rows_kept":36,"merged":[[0,5,6,6],[1,0,1,4],[2,0,2,4],[2,7,2,10],[3,0,3,4],[3,7,5,10],[4,0,4,4],[5,0,5,4],[6,0,6,4],[6,7,6,10],[7,0,7,10],[8,0,8,10],[9,0,9,3],[9,5,9,10],[10,0,10,10],[11,0,11,3],[11,4,12,10],[12,0,12,3],[13,0,13,10],[14,0,14,10],[15,0,15,10],[16,0,16,4],[16,5,16,7],[17,0,17,2],[17,4,17,7],[17,9,17,10],[18,0,18,1],[18,2,18,7],[19,1,19,7],[20,0,20,1],[20,2,20,7],[20,9,20,10],[21,1,21,4],[21,7,21,10],[22,1,22,4],[22,7,22,10],[23,0,24,4],[23,6,24,10],[25,0,25,4],[25,6,25,10],[26,0,26,5],[26,6,26,10],[27,0,28,10],[29,0,29,10],[30,0,30,10],[33,5,33,8],[35,5,35,8]]}
["SOLICITATION, OFFER, AND BID FORM",{"$nulls":9},"ESCAMBIA COUNTY, FLORIDA"]
["Submit offers to:"]
["Jeff Lovingood, 850-595-4953",{"$nulls":6},"Invitation to Bid"]
["Purchasing Specialist",{"$nulls":6},"Re-Bid Pensacola Beach Sign Frame Replacement"]
["Office of Purchasing, 2nd Floor, Room 11.101"]
["213 Palafox Place, Pensacola, FL  32502"]
["or P.O. Box 1591, Pensacola, FL 32591-1591",{"$nulls":6},"Solicitation Number PD 17-18.099"]
["SOLICITATION"]
["Mailing Date:  September 04, 2018"]
["Pre-Solicitation Conference: A Non-Mandatory",{"$nulls":3},"Non-Mandatory","Pre-Solicitation Conference will be held in the Office of "]
["Purchasing Conference Room, 11.407, at 213 Palafox Pl. Pensacola, FL 32502 at 10:00 AM CDT September 19, 2018."]
["Offers Will Be Received Until:",{"$nulls":3},"2:00 PM CDT October 05, 2018, and may not be withdrawn within 90 days after such date and time."]
[]
["POSTING OF SOLICITATION TABULATIONS"]
["Solicitation tabulations with Recommended Awards will be posted for review by interested parties at the Escambia County Office of Purchasing, and will remain posted for a period of two (2) business days.  Failure to file a protest in writing within two (2) business days after posting of the soliciation tabulation shall constitute a waiver of any protest relating to this soliciation.  All protests must be filed with the Escambia County Office of Purchasing.  Protests will be handled according to Escambia County Purchasing Ordinance."]
["OFFER (shall be completed by Offeror)"]
["Federal Employer ID Number or S.S. Number:",{"$nulls":9},"Terms of Payment"]
["Delivery Date will be ",{"$nulls":3},"days after receipt of Purchase Order"]
["Vendor Name:"]
["Address:",{"$nulls":9},"Bid Bond Attached"]
["City, State, Zip:",{"$nulls":7},"$"]
["Phone:",{"$nulls":5},"Toll Free:"]
["Fax:",{"$nulls":5},"Contact:"]
[]
[]
["Name & Title of Person Authorized to Sign Offer",{"$nulls":5},"* Signature of Person Authorized to Sign Offer"]
[{"$nulls":6},"(Original Signature Required)"]
["* Failure to execute this Form binding the bidder/proposer's offer shall result in the bid/proposal being rejected as non-responsive."]
[]
["I certify that this offer is made without prior understanding, agreement, or connection, with any Corporation, firm or person submitting an offer for the same materials, supplies, or equipment, and is in all respects fair and without collusion or fraud.  I agree to abide by all conditions of this offer and certify that I am authorized to sign this offer for the Offeror and that the Offeror is in compliance with all requirements of the solicitation, including but not limited to certification requirements.  In submitting an offer to Escambia County Florida, the Offeror agrees that if the offer is accepted, the Offeror will convey, sell, assign or transfer to Escambia County Florida all rights title and interest in and to all causes of action it may now or hereafter acquire under the Anti-trust laws of the United States and the State of Florida for price fixing relating to the particular commodities or services purchase or acquired by Escambia County Florida.  At the County’s discretion, such assignment shall be made and become effective at the time the County tenders final payment to the Offeror."]
["BID FORM"]
[]
[]
[{"$nulls":4},"BASE BID:    $",{"$f":"'Base Bid Unit Pricing'!F22","v":{"v":0,"d":"0.00"}}]
[]
[{"$nulls":4},"ALTERNATE BID 1:  $",{"$f":"'Alternate Bid 1 Unit Pricing'!F21","v":{"v":0,"d":"0.00"}}]

{"sheet":"Base Bid Unit Pricing","index":1,"n_rows":23,"n_cols":6,"rows_kept":23,"merged":[[0,0,0,5],[1,0,1,5],[21,0,21,4],[22,0,22,5],[23,0,23,5]]}
["BASE BID"]
["Please see the solicitation for the full Scope of Work"]
["Item Number from Summary Worksheet","Description","Units","Quantity","Unit Cost","Total"]
[1,"Mobilization/Demobilization (≤ 2% of Total Base Bid)","LS",1,null,{"$f":"D4*E4","v":{"v":0,"d":"$0.00"}}]
[7,"Coordinate with Gulf Power and de-energize power supply to existing signs.","LS",1,null,{"$f":"D5*E5","v":{"v":0,"d":"$0.00"}}]
[8,"Disconnect electrical wiring from existing signs.","LS",1,null,{"v":0,"d":"$0.00"}]
[9,"Detach and remove existing signs from the existing structure.","LS",1,null,{"v":0,"d":"$0.00"}]
[10,"Haul the existing signs to a secured Escambia County location that has been assigned by Escambia County Enginnering and Public Works Department Personnel, David Forte and Joy Jones.","LS",1,null,{"v":0,"d":"$0.00"}]
[11,"Field measure/confirm dimensions and orientation of all existing sign support members.  This should be completed before beginning material procurement, fabrication, and erection.  New sign-support framing shall be fabricated to match the existing layout for compatibility with signs.","LS",1,null,{"v":0,"d":"$0.00"}]
[12,"Demolish existing sign steel frame and components in its entirety.  Contractor is to become familiar with all existing elements of existing sign structure prior to commencing demolition.  Contractor shall prepare a written demolition plan and submit it to the Engineer of Record for review prior to commencement of demolition.  Plan shall detail the methodology and sequence of demolition.  All demoished material, unless otherwise noted, shall be completely removed and disposed of by the contractor at an approved disposal facility.","LS",1,null,{"v":0,"d":"$0.00"}]
[13,"Chip down concrete piers/foundations to sound material, max 3\".  Cut off existing anchor bolts at lowest exposed point.","LS",1,null,{"v":0,"d":"$0.00"}]
[14,"Clean and remove any deleterious materials remaining on the existing exposed piers/foundations. Apply Sika Armatec 110 Epocem, or equivalent approved by David Forte and Joy Jones, and place high strength cementitios grout to achieve a level finish that matches existing top of pier/foundation elevation.","LS",1,null,{"v":0,"d":"$0.00"}]
[15,"Install threaded rods for new sign structure.","LS",1,null,{"v":0,"d":"$0.00"}]
[17,"Erect new steel frame structure.","LS",1,null,{"v":0,"d":"$0.00"}]
[18,"Contractor shall refurbish the internal electrical components of the sign.  Contractor shall refer to S-3 for electrical components to be refurbished.  Due to the fragile nature and limited ability to replace neon tubing, the exterior surface of the existing signs WILL NOT BE REPAINTED, REPAIRED, OR REFURBISHED.","LS",1,null,{"v":0,"d":"$0.00"}]
[19,"Contractor shall haul the signs back from the storage location specified by Escambia County and re-install the existing signs with the refurbished internal components.","LS",1,null,{"v":0,"d":"$0.00"}]
[20,"Contractor shall re-attach signs to the new frame structure.","LS",1,null,{"v":0,"d":"$0.00"}]
[21,"Contractor shall reconnect electrical wiring to signs.","LS",1,null,{"v":0,"d":"$0.00"}]
[22,"Contractor shall re-energize the power supply to the sign.","LS",1,null,{"v":0,"d":"$0.00"}]
[23,"Contractor shall develop As-Built drawings.","LS",1,null,{"v":0,"d":"$0.00"}]
[]
["TOTAL ",{"$nulls":4},{"$f":"SUM(F4:F20)","v":{"v":0,"d":"$0.00"}}]
["Please Type the Bid Amount Using Words (like a written check)."]

{"sheet":"Alternate Bid 1 Unit Pricing","index":2,"n_rows":22,"n_cols":6,"rows_kept":22,"merged":[[0,0,0,5],[1,0,1,5],[20,0,20,4],[21,0,21,5],[22,0,22,5]]}
["BASE BID"]
["Please see the solicitation for the full Scope of Work"]
["Item Number from Summary Worksheet","Description","Units","Quantity","Unit Cost","Total"]
[25,"Mobilization/Demobilization (≤ 2% of Total Base Bid)","LS",1,null,{"$f":"D4*E4","v":{"v":0,"d":"$0.00"}}]
[30,"Coordinate with Gulf Power and de-energize power supply to existing signs.","LS",1,null,{"$f":"D5*E5","v":{"v":0,"d":"$0.00"}}]
[31,"Disconnect electrical wiring from existing signs.","LS",1,null,{"v":0,"d":"$0.00"}]
[32,"Detach and remove existing signs from the existing structure.","LS",1,null,{"v":0,"d":"$0.00"}]
[33,"Haul the existing signs to a secured Escambia County location that has been assigned by Escambia County Enginnering and Public Works Department Personnel, David Forte and Joy Jones, and will be coordinated with these individuals two (2) weeks prior to the removal of the existing sign. The existing signs shall be stored in a manner that protects the signs and its components from damage or theft.  Sign storage in this bid shall be considered permanent storage of the County-owned sign.","LS",1,null,{"v":0,"d":"$0.00"}]
[34,"Field measure/confirm dimensions and orientation of all existing sign support members.  This should be completed before beginning material procurement, fabrication, and erection.  New sign-support framing shall be fabricated to match the existing layout for compatibility with signs.","LS",1,null,{"v":0,"d":"$0.00"}]
[35,"Demolish existing sign steel frame and components in its entirety.  Contractor is to become familiar with all existing elements of existing sign structure prior to commencing demolition.  Contractor shall prepare a written demolition plan and submit it to the Engineer of Record for review prior to commencement of demolition.  Plan shall detail the methodology and sequence of demolition.  All demoished material, unless otherwise noted, shall be completely removed and disposed of by the contractor at an approved disposal facility.","LS",1,null,{"v":0,"d":"$0.00"}]
[36,"Chip down concrete piers/foundations to sound material, max 3\".  Cut off existing anchor bolts at lowest exposed point.","LS",1,null,{"v":0,"d":"$0.00"}]
[37,"Clean and remove any deleterious materials remaining on the existing exposed piers/foundations. Apply Sika Armatec 110 Epocem, or equivalent approved by David Forte and Joy Jones, and place high strength cementitios grout to achieve a level finish that matches existing top of pier/foundation elevation.","LS",1,null,{"v":0,"d":"$0.00"}]
[38,"Install threaded rods for new sign structure.","LS",1,null,{"v":0,"d":"$0.00"}]
[40,"Erect new steel frame structure.","LS",1,null,{"v":0,"d":"$0.00"}]
[41,"New sign.","LS",1,null,{"v":0,"d":"$0.00"}]
[43,"Contractor shall haul and erect new sign on new sign frame.","LS",1,null,{"v":0,"d":"$0.00"}]
[44,"Contractor shall make all required electrical connections.","LS",1,null,{"v":0,"d":"$0.00"}]
[45,"Contractor shall re-energize the power supply to sign.","LS",1,null,{"v":0,"d":"$0.00"}]
[46,"Contractor shall develop as-built drawings.","LS",1,null,{"v":0,"d":"$0.00"}]
[]
["TOTAL ",{"$nulls":4},{"$f":"SUM(F4:F19)","v":{"v":0,"d":"$0.00"}}]
["Please Type the Bid Amount Using Words (like a written check)."]